[Event "Early-Titled-Tuesday-Blitz-March-12-2024"]
[Site "Chess.com"]
[Date "2024.03.12"]
[Round "7"]
[White "KhazhatulyAlikhan"]
[Black "volodja49"]
[Result "0-1"]
[WhiteElo "2448"]
[BlackElo "2588"]
[TimeControl "180+1"]
[EndTime "9:17:17 PDT"]
[Termination "volodja49 won by resignation"]

1. e4 {[%clk 0:02:57.7]} 1... e6 {[%clk 0:02:58.4]} 2. d4 {[%clk 0:02:52.9]}
2... d5 {[%clk 0:02:59.3]} 3. Nd2 {[%clk 0:02:53.5]} 3... dxe4 {[%clk
0:02:59.3]} 4. Nxe4 {[%clk 0:02:53.5]} 4... Nd7 {[%clk 0:02:57.7]} 5. Nf3 {[%clk
0:02:46.7]} 5... Ngf6 {[%clk 0:02:58.6]} 6. Bd3 {[%clk 0:02:47.2]} 6... c5
{[%clk 0:02:57.6]} 7. dxc5 {[%clk 0:02:37.2]} 7... Nxe4 {[%clk 0:02:55.7]} 8.
Bxe4 {[%clk 0:02:36.3]} 8... Nxc5 {[%clk 0:02:56.6]} 9. Qxd8+ {[%clk 0:02:32.6]}
9... Kxd8 {[%clk 0:02:57.5]} 10. Ng5 {[%clk 0:02:12.7]} 10... f6 {[%clk
0:02:56.5]} 11. Nf7+ {[%clk 0:02:09.2]} 11... Ke8 {[%clk 0:02:56.8]} 12. Nxh8
{[%clk 0:02:08.5]} 12... Nxe4 {[%clk 0:02:57]} 13. Be3 {[%clk 0:02:04.1]} 13...
Bc5 {[%clk 0:02:56.8]} 14. Bxc5 {[%clk 0:01:47.1]} 14... Nxc5 {[%clk 0:02:57.7]}
15. O-O-O {[%clk 0:01:45.7]} 15... e5 {[%clk 0:02:55.8]} 16. Rhe1 {[%clk
0:01:26.4]} 16... Be6 {[%clk 0:02:52.4]} 17. f4 {[%clk 0:01:20.3]} 17... Ke7
{[%clk 0:02:31]} 18. fxe5 {[%clk 0:01:14.4]} 18... f5 {[%clk 0:02:30.8]} 19. Re3
{[%clk 0:00:48.9]} 19... Rxh8 {[%clk 0:02:20.5]} 20. Rc3 {[%clk 0:00:48.4]}
20... Na6 {[%clk 0:02:00.7]} 21. Rd6 {[%clk 0:00:40.2]} 21... Rd8 {[%clk
0:01:49]} 22. Rg3 {[%clk 0:00:22.8]} 22... g6 {[%clk 0:01:45.7]} 23. Rh3 {[%clk
0:00:22.1]} 23... h5 {[%clk 0:01:28.9]} 24. Rg3 {[%clk 0:00:20.8]} 24... Bf7
{[%clk 0:01:20.7]} 25. Rxd8 {[%clk 0:00:10.6]} 25... Kxd8 {[%clk 0:01:18]} 26.
e6 {[%clk 0:00:02.4]} 26... Be8 {[%clk 0:01:17]} 27. Rb3 {[%clk 0:00:01.5]}
27... Bc6 {[%clk 0:01:13.5]} 28. a3 {[%clk 0:00:01.3]} 28... Ke7 {[%clk
0:01:10.8]} 29. Rg3 {[%clk 0:00:01.9]} 29... Kf6 {[%clk 0:01:09.4]} 30. h4
{[%clk 0:00:02.8]} 30... Nc7 {[%clk 0:01:05.1]} 31. e7 {[%clk 0:00:03.4]} 31...
Nd5 {[%clk 0:01:04.5]} 32. e8=Q {[%clk 0:00:01.7]} 32... Bxe8 {[%clk 0:01:04]}
33. Rb3 {[%clk 0:00:02.5]} 33... Bc6 {[%clk 0:01:03.7]} 34. g3 {[%clk
0:00:03.4]} 34... f4 {[%clk 0:01:02.7]} 35. c4 {[%clk 0:00:03.6]} 35... Nb6
{[%clk 0:00:56.3]} 36. gxf4 {[%clk 0:00:04.2]} 36... Nxc4 {[%clk 0:00:55.2]} 37.
Rc3 {[%clk 0:00:04.3]} 37... Nd6 {[%clk 0:00:54.3]} 38. b4 {[%clk 0:00:05]}
38... a6 {[%clk 0:00:53.1]} 39. Rd3 {[%clk 0:00:05]} 39... Nf5 {[%clk
0:00:51.5]} 40. Rh3 {[%clk 0:00:05.1]} 40... Nh6 {[%clk 0:00:42.3]} 41. Kd2
{[%clk 0:00:05.1]} 41... Ng4 {[%clk 0:00:41.4]} 42. Rd3 {[%clk 0:00:02.8]} 42...
Kf5 {[%clk 0:00:42.3]} 43. Rd6 {[%clk 0:00:02.8]} 43... Nf6 {[%clk 0:00:35.6]}
44. Ke2 {[%clk 0:00:03.2]} 44... Nd5 {[%clk 0:00:34]} 45. Kf2 {[%clk 0:00:01.4]}
45... Nxf4 {[%clk 0:00:19.4]} 46. Kg3 {[%clk 0:00:02.3]} 46... Ne2+ {[%clk
0:00:18]} 47. Kh3 {[%clk 0:00:02.8]} 47... Nc3 {[%clk 0:00:18.3]} 48. Rd3 {[%clk
0:00:02.4]} 48... Nd5 {[%clk 0:00:17.3]} 49. Rf3+ {[%clk 0:00:02]} 49... Nf4+
{[%clk 0:00:16.3]} 50. Kg3 {[%clk 0:00:01.9]} 50... Bxf3 {[%clk 0:00:16.2]} 51.
Kxf3 {[%clk 0:00:02.8]} 51... g5 {[%clk 0:00:16.7]} 52. hxg5 {[%clk 0:00:02.8]}
52... Kxg5 {[%clk 0:00:16.6]} 53. a4 {[%clk 0:00:03.5]} 53... h4 {[%clk
0:00:16.5]} 54. b5 {[%clk 0:00:04.4]} 54... axb5 {[%clk 0:00:15.7]} 55. axb5
{[%clk 0:00:05.3]} 55... b6 {[%clk 0:00:15.9]} 56. Kf2 {[%clk 0:00:05.2]} 56...
Kg4 {[%clk 0:00:16.7]} 57. Kg1 {[%clk 0:00:05.7]} 57... Kg3 {[%clk 0:00:16.7]}
58. Kh1 {[%clk 0:00:06.6]} 58... h3 {[%clk 0:00:16.6]} 59. Kg1 {[%clk
0:00:07.5]} 59... Nd5 {[%clk 0:00:13.9]} 60. Kh1 {[%clk 0:00:08.4]} 60... Nc3
{[%clk 0:00:14.8]} 61. Kg1 {[%clk 0:00:09.3]} 61... Nxb5 {[%clk 0:00:15.5]} 62.
Kh1 {[%clk 0:00:10.2]} 0-1

[Event "Early-Titled-Tuesday-Blitz-March-12-2024"]
[Site "Chess.com"]
[Date "2024.03.12"]
[Round "7"]
[White "Danny_Billiards"]
[Black "Let_it_be_1"]
[Result "1/2-1/2"]
[WhiteElo "2791"]
[BlackElo "2628"]
[TimeControl "180+1"]
[EndTime "9:17:18 PDT"]
[Termination "Game drawn by repetition"]

1. d4 {[%clk 0:02:56.4]} 1... d5 {[%clk 0:02:59.7]} 2. Nc3 {[%clk 0:02:55.6]}
2... e6 {[%clk 0:02:59.5]} 3. Bf4 {[%clk 0:02:55.1]} 3... Bd6 {[%clk 0:02:59.1]}
4. Bxd6 {[%clk 0:02:54.2]} 4... cxd6 {[%clk 0:02:58.8]} 5. Nf3 {[%clk
0:02:50.2]} 5... Nf6 {[%clk 0:02:58.3]} 6. Qd3 {[%clk 0:02:44.2]} 6... Nc6
{[%clk 0:02:57.2]} 7. e4 {[%clk 0:02:34.6]} 7... dxe4 {[%clk 0:02:38.4]} 8. Nxe4
{[%clk 0:02:35.5]} 8... O-O {[%clk 0:02:37.9]} 9. c3 {[%clk 0:02:31]} 9... e5
{[%clk 0:01:50]} 10. dxe5 {[%clk 0:02:27]} 10... Nxe4 {[%clk 0:01:42.3]} 11.
Qxe4 {[%clk 0:02:27.9]} 11... dxe5 {[%clk 0:01:38.6]} 12. Bb5 {[%clk 0:02:25.5]}
12... f6 {[%clk 0:01:29.9]} 13. O-O {[%clk 0:02:08.1]} 13... Qb6 {[%clk
0:01:22.8]} 14. Bd3 {[%clk 0:01:47.2]} 14... g6 {[%clk 0:01:18]} 15. b4 {[%clk
0:01:44.2]} 15... Ne7 {[%clk 0:01:07]} 16. a3 {[%clk 0:01:42.5]} 16... Bf5
{[%clk 0:00:59.9]} 17. Qe2 {[%clk 0:01:38.8]} 17... Rad8 {[%clk 0:00:51.4]} 18.
Bxf5 {[%clk 0:01:35.7]} 18... Nxf5 {[%clk 0:00:50.9]} 19. Rfd1 {[%clk
0:01:34.2]} 19... Kg7 {[%clk 0:00:49.8]} 20. c4 {[%clk 0:01:31.1]} 20... Rxd1+
{[%clk 0:00:39.2]} 21. Rxd1 {[%clk 0:01:30.7]} 21... Rd8 {[%clk 0:00:39.6]} 22.
c5 {[%clk 0:01:27.5]} 22... Qa6 {[%clk 0:00:23.8]} 23. Qc2 {[%clk 0:00:53.8]}
23... Rxd1+ {[%clk 0:00:22.1]} 24. Qxd1 {[%clk 0:00:54.7]} 24... Qxa3 {[%clk
0:00:21.9]} 25. g4 {[%clk 0:00:55.4]} 25... Ne7 {[%clk 0:00:14.2]} 26. Qd7
{[%clk 0:00:50]} 26... Kf7 {[%clk 0:00:14.5]} 27. Qxb7 {[%clk 0:00:50]} 27...
Qc1+ {[%clk 0:00:12.7]} 28. Kg2 {[%clk 0:00:49.6]} 28... Qf4 {[%clk 0:00:13.4]}
29. Qd7 {[%clk 0:00:41.4]} 29... f5 {[%clk 0:00:08.4]} 30. h3 {[%clk 0:00:37.4]}
30... h5 {[%clk 0:00:07.1]} 31. gxf5 {[%clk 0:00:35.5]} 31... gxf5 {[%clk
0:00:07.5]} 32. c6 {[%clk 0:00:35.9]} 32... e4 {[%clk 0:00:07.1]} 33. Nd2 {[%clk
0:00:12.7]} 33... e3 {[%clk 0:00:05.1]} 34. fxe3 {[%clk 0:00:11.6]} 34... Qxe3
{[%clk 0:00:05.5]} 35. Kf1 {[%clk 0:00:09.4]} 35... Qxh3+ {[%clk 0:00:04.6]} 36.
Kf2 {[%clk 0:00:09.7]} 36... Qh4+ {[%clk 0:00:04.4]} 37. Ke3 {[%clk 0:00:09]}
37... Qxb4 {[%clk 0:00:04.3]} 38. c7 {[%clk 0:00:08.6]} 38... Qc3+ {[%clk
0:00:04.2]} 39. Ke2 {[%clk 0:00:08.8]} 39... f4 {[%clk 0:00:04.3]} 40. Nf3
{[%clk 0:00:08.9]} 40... Qe3+ {[%clk 0:00:04.2]} 41. Kf1 {[%clk 0:00:08.4]}
41... Qxf3+ {[%clk 0:00:04.6]} 42. Ke1 {[%clk 0:00:09.3]} 42... Qe3+ {[%clk
0:00:05]} 43. Kf1 {[%clk 0:00:09.1]} 43... f3 {[%clk 0:00:04.7]} 44. Qe8+ {[%clk
0:00:03.3]} 44... Kxe8 {[%clk 0:00:04.1]} 45. c8=Q+ {[%clk 0:00:03.6]} 45... Kf7
{[%clk 0:00:03.8]} 46. Qf8+ {[%clk 0:00:04.3]} 46... Ke6 {[%clk 0:00:03.5]} 47.
Qf6+ {[%clk 0:00:05]} 47... Kd5 {[%clk 0:00:02.7]} 48. Qd6+ {[%clk 0:00:05.3]}
48... Ke4 {[%clk 0:00:02.3]} 49. Qe5+ {[%clk 0:00:04.3]} 49... Kd3 {[%clk
0:00:02.5]} 50. Qc3+ {[%clk 0:00:04.8]} 50... Ke4 {[%clk 0:00:02.2]} 51. Qe5+
{[%clk 0:00:05.3]} 51... Kd3 {[%clk 0:00:02]} 52. Qc3+ {[%clk 0:00:06]} 52...
Ke4 {[%clk 0:00:02]} 53. Qe5+ {[%clk 0:00:06.7]} 1/2-1/2

[Event "Early-Titled-Tuesday-Blitz-March-12-2024"]
[Site "Chess.com"]
[Date "2024.03.12"]
[Round "7"]
[White "Alenzer"]
[Black "InitiatingASC"]
[Result "0-1"]
[WhiteElo "2159"]
[BlackElo "2339"]
[TimeControl "180+1"]
[EndTime "9:17:32 PDT"]
[Termination "InitiatingASC won on time"]

1. e4 {[%clk 0:02:58.4]} 1... c5 {[%clk 0:02:57.9]} 2. Nf3 {[%clk 0:02:58.2]}
2... Nc6 {[%clk 0:02:57.7]} 3. d4 {[%clk 0:02:58.1]} 3... cxd4 {[%clk
0:02:58.1]} 4. Nxd4 {[%clk 0:02:58.6]} 4... Nf6 {[%clk 0:02:58.8]} 5. Nc3 {[%clk
0:02:58.7]} 5... e5 {[%clk 0:02:59.5]} 6. Ndb5 {[%clk 0:02:59]} 6... h6 {[%clk
0:02:59.4]} 7. Nd6+ {[%clk 0:02:57.7]} 7... Bxd6 {[%clk 0:02:59.6]} 8. Qxd6
{[%clk 0:02:58.5]} 8... Qe7 {[%clk 0:03:00.5]} 9. Qxe7+ {[%clk 0:02:52]} 9...
Kxe7 {[%clk 0:03:01.4]} 10. Be3 {[%clk 0:02:47]} 10... Rd8 {[%clk 0:03:01.1]}
11. O-O-O {[%clk 0:02:46.5]} 11... d6 {[%clk 0:02:55.9]} 12. f3 {[%clk
0:02:41.8]} 12... Be6 {[%clk 0:02:55.9]} 13. Nb5 {[%clk 0:02:34.7]} 13... b6
{[%clk 0:02:40.7]} 14. Nc3 {[%clk 0:02:22]} 14... d5 {[%clk 0:02:31.8]} 15. exd5
{[%clk 0:02:21.3]} 15... Nxd5 {[%clk 0:02:31.8]} 16. Nxd5+ {[%clk 0:02:19.1]}
16... Bxd5 {[%clk 0:02:29.7]} 17. Bb5 {[%clk 0:02:11.9]} 17... Rac8 {[%clk
0:02:27.9]} 18. Rhe1 {[%clk 0:01:56.4]} 18... Nb4 {[%clk 0:01:57.1]} 19. c3
{[%clk 0:01:19.4]} 19... Bxa2 {[%clk 0:01:55.7]} 20. Rxd8 {[%clk 0:01:16]} 20...
Kxd8 {[%clk 0:01:56.6]} 21. Rd1+ {[%clk 0:01:16.1]} 21... Ke7 {[%clk 0:01:47.9]}
22. Rd7+ {[%clk 0:01:15.1]} 22... Kf6 {[%clk 0:01:48.1]} 23. Rxa7 {[%clk
0:01:14.3]} 23... Bb3 {[%clk 0:01:44]} 24. Kd2 {[%clk 0:01:00.5]} 24... Rd8+
{[%clk 0:01:36]} 25. Rd7 {[%clk 0:01:00.2]} 25... Rxd7+ {[%clk 0:01:31.2]} 26.
Bxd7 {[%clk 0:01:00]} 26... Nd5 {[%clk 0:01:31.2]} 27. Bf2 {[%clk 0:00:53.6]}
27... Bc4 {[%clk 0:01:26]} 28. Bc6 {[%clk 0:00:49.6]} 28... b5 {[%clk
0:01:25.5]} 29. Kc2 {[%clk 0:00:46.2]} 29... Ne7 {[%clk 0:01:13.3]} 30. Be4
{[%clk 0:00:42.5]} 30... Bf1 {[%clk 0:01:13.4]} 31. g3 {[%clk 0:00:42]} 31...
Ke6 {[%clk 0:01:09]} 32. Bc5 {[%clk 0:00:33.6]} 32... f5 {[%clk 0:01:06.2]} 33.
Bb7 {[%clk 0:00:32.6]} 33... g5 {[%clk 0:01:02]} 34. Ba6 {[%clk 0:00:29.5]}
34... e4 {[%clk 0:00:57.6]} 35. fxe4 {[%clk 0:00:25.9]} 35... fxe4 {[%clk
0:00:57.6]} 36. Kd2 {[%clk 0:00:24.4]} 36... Bd3 {[%clk 0:00:55.9]} 37. Bxe7
{[%clk 0:00:20.2]} 37... Kxe7 {[%clk 0:00:54.7]} 38. Ke3 {[%clk 0:00:20.9]}
38... Ke6 {[%clk 0:00:54.6]} 39. Bb7 {[%clk 0:00:20.4]} 39... Ke5 {[%clk
0:00:54.7]} 40. Bc6 {[%clk 0:00:20.5]} 40... Kf5 {[%clk 0:00:51.7]} 41. h3
{[%clk 0:00:17.7]} 41... Ke5 {[%clk 0:00:48.6]} 42. h4 {[%clk 0:00:15]} 42...
gxh4 {[%clk 0:00:47.6]} 43. gxh4 {[%clk 0:00:15.9]} 43... Kf5 {[%clk 0:00:48]}
44. h5 {[%clk 0:00:14.5]} 44... Ke5 {[%clk 0:00:47.1]} 45. Bb7 {[%clk 0:00:12]}
45... Bc2 {[%clk 0:00:44.8]} 46. Bc6 {[%clk 0:00:12]} 46... Bd1 {[%clk
0:00:41.6]} 47. Bxb5 {[%clk 0:00:10.6]} 47... Bxh5 {[%clk 0:00:42.2]} 48. Bc6
{[%clk 0:00:10.1]} 48... Bg6 {[%clk 0:00:40.9]} 49. b4 {[%clk 0:00:10.5]} 49...
Bf5 {[%clk 0:00:38.4]} 50. Bb5 {[%clk 0:00:09.6]} 50... h5 {[%clk 0:00:38.2]}
51. Bf1 {[%clk 0:00:05.5]} 51... h4 {[%clk 0:00:38.2]} 52. Bg2 {[%clk 0:00:05]}
52... h3 {[%clk 0:00:29.4]} 53. Bh1 {[%clk 0:00:05.5]} 53... Bg6 {[%clk
0:00:26.2]} 54. c4 {[%clk 0:00:05]} 54... Bf7 {[%clk 0:00:25.8]} 55. c5 {[%clk
0:00:05]} 55... Bd5 {[%clk 0:00:25.8]} 56. b5 {[%clk 0:00:05]} 56... h2 {[%clk
0:00:22.8]} 57. c6 {[%clk 0:00:04.2]} 57... Kd6 {[%clk 0:00:21.7]} 58. Kf2
{[%clk 0:00:03.9]} 58... e3+ {[%clk 0:00:18.8]} 59. Kxe3 {[%clk 0:00:02.4]}
59... Bxh1 {[%clk 0:00:18.9]} 60. Kf2 {[%clk 0:00:02.8]} 60... Bxc6 {[%clk
0:00:18.6]} 61. bxc6 {[%clk 0:00:02.8]} 61... h1=Q {[%clk 0:00:18.9]} 0-1

[Event "Early-Titled-Tuesday-Blitz-March-12-2024"]
[Site "Chess.com"]
[Date "2024.03.12"]
[Round "7"]
[White "imdvb6307"]
[Black "martinmena"]
[Result "1-0"]
[WhiteElo "2484"]
[BlackElo "2272"]
[TimeControl "180+1"]
[EndTime "9:17:39 PDT"]
[Termination "imdvb6307 won on time"]

1. d4 {[%clk 0:03:00.9]} 1... d5 {[%clk 0:02:57]} 2. Nf3 {[%clk 0:03:00.9]} 2...
Nf6 {[%clk 0:02:55.5]} 3. e3 {[%clk 0:03:00.7]} 3... e6 {[%clk 0:02:55]} 4. Nbd2
{[%clk 0:02:53.9]} 4... b6 {[%clk 0:02:49.5]} 5. c3 {[%clk 0:02:48.9]} 5... Bd6
{[%clk 0:02:47.2]} 6. Bb5+ {[%clk 0:02:43.7]} 6... c6 {[%clk 0:02:44.8]} 7. Bd3
{[%clk 0:02:43.8]} 7... O-O {[%clk 0:02:41.3]} 8. Ne5 {[%clk 0:02:39.2]} 8...
Ba6 {[%clk 0:02:37.4]} 9. Bc2 {[%clk 0:02:35.2]} 9... Bxe5 {[%clk 0:02:34.4]}
10. dxe5 {[%clk 0:02:35]} 10... Nfd7 {[%clk 0:02:32.7]} 11. Qh5 {[%clk 0:02:23]}
11... g6 {[%clk 0:02:31]} 12. Qh6 {[%clk 0:02:18]} 12... Nxe5 {[%clk 0:02:27.2]}
13. Nf3 {[%clk 0:02:10.7]} 13... Nxf3+ {[%clk 0:02:17.4]} 14. gxf3 {[%clk
0:02:10.7]} 14... e5 {[%clk 0:01:58.2]} 15. h4 {[%clk 0:02:07.6]} 15... Qf6
{[%clk 0:01:32.8]} 16. Rh3 {[%clk 0:02:06.7]} 16... Qg7 {[%clk 0:01:29.4]} 17.
Qg5 {[%clk 0:02:03.1]} 17... h6 {[%clk 0:01:20.7]} 18. Qg3 {[%clk 0:01:58.4]}
18... Bc8 {[%clk 0:01:18.7]} 19. Rh1 {[%clk 0:01:56.9]} 19... Bf5 {[%clk
0:01:10.5]} 20. e4 {[%clk 0:01:56.3]} 20... dxe4 {[%clk 0:01:10.2]} 21. fxe4
{[%clk 0:01:55.9]} 21... Be6 {[%clk 0:01:08.3]} 22. f4 {[%clk 0:01:45.7]} 22...
exf4 {[%clk 0:00:53.5]} 23. Bxf4 {[%clk 0:01:45.1]} 23... Nd7 {[%clk 0:00:44.7]}
24. O-O-O {[%clk 0:01:44.8]} 24... Nf6 {[%clk 0:00:34.3]} 25. Be5 {[%clk
0:01:35.3]} 25... Nh5 {[%clk 0:00:22.4]} 26. Qh2 {[%clk 0:01:15.9]} 26... f6
{[%clk 0:00:17.4]} 27. Bd6 {[%clk 0:01:16.1]} 27... Rfe8 {[%clk 0:00:16.9]} 28.
Rhg1 {[%clk 0:01:15.9]} 28... Kh7 {[%clk 0:00:13.4]} 29. Rd2 {[%clk 0:00:52.3]}
29... Qf7 {[%clk 0:00:13.1]} 30. Rdg2 {[%clk 0:00:48.3]} 30... Rg8 {[%clk
0:00:13.5]} 31. a3 {[%clk 0:00:20.8]} 31... Bb3 {[%clk 0:00:11.5]} 32. Bd3
{[%clk 0:00:19.9]} 32... Bc4 {[%clk 0:00:08.9]} 33. Bc2 {[%clk 0:00:20.2]} 33...
Bb3 {[%clk 0:00:09]} 34. Qh3 {[%clk 0:00:18.7]} 34... Bxc2 {[%clk 0:00:08.6]}
35. Kxc2 {[%clk 0:00:18.7]} 35... Rad8 {[%clk 0:00:07.5]} 36. Rd2 {[%clk
0:00:18.5]} 36... Qd7 {[%clk 0:00:06.7]} 37. Qf3 {[%clk 0:00:13.6]} 37... Qe6
{[%clk 0:00:06.5]} 38. Rgd1 {[%clk 0:00:13]} 38... Rge8 {[%clk 0:00:05.2]} 39.
e5 {[%clk 0:00:12.7]} 39... fxe5 {[%clk 0:00:04.1]} 40. Qxc6 {[%clk 0:00:12.1]}
40... Qf5+ {[%clk 0:00:03.5]} 41. Kb3 {[%clk 0:00:11.4]} 41... Nf4 {[%clk
0:00:04.2]} 42. Bc7 {[%clk 0:00:09.3]} 42... Rxd2 {[%clk 0:00:03.2]} 43. Rxd2
{[%clk 0:00:09.5]} 43... Re7 {[%clk 0:00:03.6]} 44. Bd8 {[%clk 0:00:08.4]} 44...
Qe6+ {[%clk 0:00:03.9]} 45. Qxe6 {[%clk 0:00:08.4]} 45... Rxe6 {[%clk
0:00:04.4]} 46. Rd7+ {[%clk 0:00:08.1]} 46... Kg8 {[%clk 0:00:05.3]} 47. Rxa7
{[%clk 0:00:07.7]} 47... e4 {[%clk 0:00:05.2]} 48. Bc7 {[%clk 0:00:04.8]} 48...
Nd5 {[%clk 0:00:05.9]} 49. Bg3 {[%clk 0:00:04.3]} 49... e3 {[%clk 0:00:06.6]}
50. Rd7 {[%clk 0:00:04.3]} 50... Nf6 {[%clk 0:00:04.7]} 51. Rd1 {[%clk
0:00:04.2]} 51... e2 {[%clk 0:00:05.1]} 52. Re1 {[%clk 0:00:04.5]} 52... Nh5
{[%clk 0:00:04.6]} 53. Bh2 {[%clk 0:00:04]} 53... Nf6 {[%clk 0:00:04.7]} 54. Kc4
{[%clk 0:00:03.8]} 54... Ng4 {[%clk 0:00:04.8]} 55. Bg3 {[%clk 0:00:03.5]} 55...
h5 {[%clk 0:00:02.1]} 56. Kd3 {[%clk 0:00:03.2]} 56... Ne5+ {[%clk 0:00:01.4]}
57. Bxe5 {[%clk 0:00:02.2]} 57... Rxe5 {[%clk 0:00:01.5]} 58. Rxe2 {[%clk
0:00:02.7]} 58... Rd5+ {[%clk 0:00:01.5]} 59. Ke4 {[%clk 0:00:03.2]} 59... Rb5
{[%clk 0:00:01.8]} 60. b4 {[%clk 0:00:02.8]} 60... Rf5 {[%clk 0:00:02]} 61. Rg2
{[%clk 0:00:02.6]} 61... Kf7 {[%clk 0:00:01.3]} 62. a4 {[%clk 0:00:03.1]} 62...
Rf1 {[%clk 0:00:01.1]} 63. Rh2 {[%clk 0:00:03.3]} 1-0

[Event "Early-Titled-Tuesday-Blitz-March-12-2024"]
[Site "Chess.com"]
[Date "2024.03.12"]
[Round "7"]
[White "yosephtaher"]
[Black "Hikaru"]
[Result "0-1"]
[WhiteElo "2951"]
[BlackElo "3231"]
[TimeControl "180+1"]
[EndTime "9:17:42 PDT"]
[Termination "Hikaru won by resignation"]

1. e4 {[%clk 0:03:00.9]} 1... e6 {[%clk 0:02:58]} 2. Qe2 {[%clk 0:02:53.3]} 2...
Ne7 {[%clk 0:02:51.9]} 3. Nf3 {[%clk 0:02:50]} 3... d5 {[%clk 0:02:52.3]} 4. d3
{[%clk 0:02:50.3]} 4... b6 {[%clk 0:02:50.8]} 5. exd5 {[%clk 0:02:45.7]} 5...
Nxd5 {[%clk 0:02:49.1]} 6. g3 {[%clk 0:02:45.9]} 6... c5 {[%clk 0:02:49.2]} 7.
Bg2 {[%clk 0:02:46.5]} 7... Nc6 {[%clk 0:02:49.4]} 8. O-O {[%clk 0:02:47.3]}
8... Bb7 {[%clk 0:02:49.8]} 9. Nbd2 {[%clk 0:02:35.2]} 9... Be7 {[%clk
0:02:48.2]} 10. Nc4 {[%clk 0:02:35.9]} 10... Bf6 {[%clk 0:02:41]} 11. c3 {[%clk
0:02:34]} 11... O-O {[%clk 0:02:41.1]} 12. a4 {[%clk 0:02:21.9]} 12... Qc7
{[%clk 0:02:41.1]} 13. Ng5 {[%clk 0:02:15.6]} 13... Bxg5 {[%clk 0:02:36.5]} 14.
Bxg5 {[%clk 0:02:16.5]} 14... h6 {[%clk 0:02:36.9]} 15. Bd2 {[%clk 0:02:14.9]}
15... Rad8 {[%clk 0:02:36.9]} 16. Rad1 {[%clk 0:02:13.8]} 16... Rd7 {[%clk
0:02:33.7]} 17. Bc1 {[%clk 0:02:14.1]} 17... Rfd8 {[%clk 0:02:33.6]} 18. Rfe1
{[%clk 0:02:14.7]} 18... Qc8 {[%clk 0:02:27.1]} 19. h4 {[%clk 0:02:10.6]} 19...
Qa8 {[%clk 0:02:15.5]} 20. Kh2 {[%clk 0:02:01.4]} 20... Nf6 {[%clk 0:02:15.1]}
21. Bh3 {[%clk 0:01:41]} 21... Ba6 {[%clk 0:01:59.2]} 22. Bg2 {[%clk 0:01:34.7]}
22... Qc8 {[%clk 0:01:58.8]} 23. Bxc6 {[%clk 0:01:27.8]} 23... Qxc6 {[%clk
0:01:58.7]} 24. Ne5 {[%clk 0:01:28.6]} 24... Qxa4 {[%clk 0:01:59.4]} 25. Nxd7
{[%clk 0:01:28.9]} 25... Rxd7 {[%clk 0:01:59.1]} 26. f3 {[%clk 0:01:16.9]} 26...
Bb7 {[%clk 0:01:48.9]} 27. Be3 {[%clk 0:01:13.5]} 27... Qb5 {[%clk 0:01:45.6]}
28. Rd2 {[%clk 0:01:10.4]} 28... Qc6 {[%clk 0:01:40.9]} 29. Kg2 {[%clk
0:01:08.3]} 29... Rd5 {[%clk 0:01:38.4]} 30. d4 {[%clk 0:01:02.9]} 30... Rf5
{[%clk 0:01:34.3]} 31. Rf1 {[%clk 0:01:03.4]} 31... c4 {[%clk 0:01:29.2]} 32.
Bf4 {[%clk 0:00:58.6]} 32... Nd5 {[%clk 0:01:28.8]} 33. Be3 {[%clk 0:00:56.1]}
33... h5 {[%clk 0:01:09.2]} 34. Rdd1 {[%clk 0:00:42.2]} 34... b5 {[%clk
0:01:07]} 35. Rf2 {[%clk 0:00:42.3]} 35... a5 {[%clk 0:00:59.3]} 36. Ra1 {[%clk
0:00:41.4]} 36... Qc7 {[%clk 0:00:55.8]} 37. Bd2 {[%clk 0:00:40.5]} 37... a4
{[%clk 0:00:48.4]} 38. Kh2 {[%clk 0:00:40.8]} 38... Ne7 {[%clk 0:00:48.5]} 39.
Kg2 {[%clk 0:00:38.7]} 39... Ng6 {[%clk 0:00:48.2]} 40. Re1 {[%clk 0:00:32.3]}
40... Bd5 {[%clk 0:00:48.3]} 41. Bc1 {[%clk 0:00:30.9]} 41... Ne7 {[%clk
0:00:46]} 42. Bd2 {[%clk 0:00:31]} 42... Nc6 {[%clk 0:00:43.5]} 43. Bc1 {[%clk
0:00:31.1]} 43... Rf6 {[%clk 0:00:43.4]} 44. Kh2 {[%clk 0:00:27.6]} 44... Rg6
{[%clk 0:00:43.2]} 45. Bf4 {[%clk 0:00:27.6]} 45... Qe7 {[%clk 0:00:43.1]} 46.
Qd2 {[%clk 0:00:27.9]} 46... Qd7 {[%clk 0:00:41]} 47. Ref1 {[%clk 0:00:26.4]}
47... Ne7 {[%clk 0:00:41.1]} 48. Re1 {[%clk 0:00:26.9]} 48... f6 {[%clk
0:00:34.6]} 49. Qe3 {[%clk 0:00:24.5]} 49... Kf7 {[%clk 0:00:34.6]} 50. Qd2
{[%clk 0:00:24.9]} 50... Nc6 {[%clk 0:00:31.8]} 51. Ref1 {[%clk 0:00:23.5]}
51... Nd8 {[%clk 0:00:30.7]} 52. Re1 {[%clk 0:00:24]} 52... Kg8 {[%clk 0:00:31]}
53. Ref1 {[%clk 0:00:24.5]} 53... Nf7 {[%clk 0:00:30.7]} 54. Qc2 {[%clk
0:00:24.8]} 54... f5 {[%clk 0:00:31.1]} 55. Qd2 {[%clk 0:00:25.3]} 55... Rf6
{[%clk 0:00:30.8]} 56. Re1 {[%clk 0:00:25.4]} 56... Nh8 {[%clk 0:00:30.8]} 57.
Bg5 {[%clk 0:00:24.8]} 57... Rf8 {[%clk 0:00:31]} 58. Bf4 {[%clk 0:00:25.6]}
58... Ng6 {[%clk 0:00:31.6]} 59. Kg2 {[%clk 0:00:24.7]} 59... Kf7 {[%clk
0:00:31.4]} 60. Bg5 {[%clk 0:00:24.9]} 60... Ra8 {[%clk 0:00:32]} 61. Ra1 {[%clk
0:00:24.2]} 61... Qd6 {[%clk 0:00:32.6]} 62. Bf4 {[%clk 0:00:23.6]} 62... Qc6
{[%clk 0:00:31.7]} 63. Qe2 {[%clk 0:00:22.8]} 63... Ra7 {[%clk 0:00:31.9]} 64.
Bc1 {[%clk 0:00:22.1]} 64... Rb7 {[%clk 0:00:32.3]} 65. Bd2 {[%clk 0:00:21.8]}
65... Re7 {[%clk 0:00:32.5]} 66. Bg5 {[%clk 0:00:20.3]} 66... Re8 {[%clk
0:00:33]} 67. Bf4 {[%clk 0:00:20]} 67... Nf8 {[%clk 0:00:31.2]} 68. Kh2 {[%clk
0:00:20.1]} 68... Nd7 {[%clk 0:00:31.3]} 69. Re1 {[%clk 0:00:18.8]} 69... Nf8
{[%clk 0:00:31.6]} 70. Ra1 {[%clk 0:00:18.9]} 70... Ng6 {[%clk 0:00:32.2]} 71.
Bg5 {[%clk 0:00:19.3]} 71... e5 {[%clk 0:00:32]} 72. dxe5 {[%clk 0:00:17]} 72...
Nxe5 {[%clk 0:00:32.1]} 73. Qd1 {[%clk 0:00:13.4]} 73... Bxf3 {[%clk 0:00:30.5]}
74. Qf1 {[%clk 0:00:06.7]} 74... Ng4+ {[%clk 0:00:30.2]} 75. Kh3 {[%clk
0:00:07.4]} 75... Nxf2+ {[%clk 0:00:30.8]} 76. Qxf2 {[%clk 0:00:08.3]} 76...
Bg4+ {[%clk 0:00:29.7]} 0-1